[Event "*** MasterClass Titled Tuesday Blitz"]
[Site "Chess.com"]
[Date "2017.07.04"]
[Round "2"]
[White "vovkcoach"]
[Black "maciek_92"]
[Result "0-1"]
[WhiteElo "2525"]
[BlackElo "2559"]
[TimeControl "180+2"]
[EndTime "13:24:12 PDT"]
[Termination "maciek_92 won on time"]

1. e4 {[%clk 0:02:57.8]} 1... c5 {[%clk 0:03:00.3]} 2. Nf3 {[%clk 0:02:58.6]}
2... Nc6 {[%clk 0:03:01.3]} 3. d4 {[%clk 0:02:55.9]} 3... cxd4 {[%clk
0:03:03.2]} 4. Nxd4 {[%clk 0:02:57.8]} 4... Nf6 {[%clk 0:02:58.1]} 5. Nc3 {[%clk
0:02:58.3]} 5... e5 {[%clk 0:02:55.2]} 6. Ndb5 {[%clk 0:02:58.7]} 6... d6 {[%clk
0:02:56.4]} 7. Bg5 {[%clk 0:02:58.6]} 7... a6 {[%clk 0:02:57.5]} 8. Na3 {[%clk
0:02:59.5]} 8... b5 {[%clk 0:02:59]} 9. Nd5 {[%clk 0:03:00.8]} 9... Be7 {[%clk
0:03:00.1]} 10. Bxf6 {[%clk 0:03:01.8]} 10... Bxf6 {[%clk 0:03:02]} 11. c4
{[%clk 0:03:01.1]} 11... b4 {[%clk 0:03:02.9]} 12. Nc2 {[%clk 0:03:01.7]} 12...
Rb8 {[%clk 0:03:04.4]} 13. b3 {[%clk 0:02:54.9]} 13... O-O {[%clk 0:03:05]} 14.
g3 {[%clk 0:02:51.6]} 14... Be6 {[%clk 0:03:03.5]} 15. Bg2 {[%clk 0:02:51.6]}
15... Bg5 {[%clk 0:02:59.4]} 16. h4 {[%clk 0:02:50.1]} 16... Bh6 {[%clk
0:03:00.7]} 17. O-O {[%clk 0:02:51.2]} 17... a5 {[%clk 0:02:51.5]} 18. Qd3
{[%clk 0:02:51.3]} 18... g6 {[%clk 0:02:45.3]} 19. Rad1 {[%clk 0:02:49.3]} 19...
Kh8 {[%clk 0:02:38.5]} 20. Nde3 {[%clk 0:02:45.1]} 20... Qb6 {[%clk 0:02:38.3]}
21. Kh2 {[%clk 0:02:23.4]} 21... Rbd8 {[%clk 0:02:35.5]} 22. f4 {[%clk
0:02:13.3]} 22... exf4 {[%clk 0:02:37.4]} 23. gxf4 {[%clk 0:02:15.2]} 23... Qc5
{[%clk 0:02:38.8]} 24. Nd5 {[%clk 0:02:05]} 24... f5 {[%clk 0:02:35.7]} 25. Qg3
{[%clk 0:01:42.9]} 25... Qa7 {[%clk 0:02:18.8]} 26. e5 {[%clk 0:01:23.6]} 26...
dxe5 {[%clk 0:02:14.6]} 27. fxe5 {[%clk 0:01:25.5]} 27... f4 {[%clk 0:02:15]}
28. Qe1 {[%clk 0:01:05.7]} 28... Qb8 {[%clk 0:02:01.4]} 29. Nd4 {[%clk
0:00:57.8]} 29... Bxd5 {[%clk 0:01:42.7]} 30. Bxd5 {[%clk 0:00:28.5]} 30... Nxe5
{[%clk 0:01:41.7]} 31. Ne6 {[%clk 0:00:16]} 31... Ng4+ {[%clk 0:01:28]} 32. Kh1
{[%clk 0:00:16.9]} 32... f3 {[%clk 0:01:14.9]} 33. Rd2 {[%clk 0:00:16]} 33...
Rde8 {[%clk 0:01:03.2]} 34. Qa1+ {[%clk 0:00:15.6]} 34... Rf6 {[%clk 0:01:03.7]}
35. Rc2 {[%clk 0:00:05.9]} 35... Qe5 {[%clk 0:00:45.7]} 36. Qxe5 {[%clk
0:00:05.2]} 36... Nxe5 {[%clk 0:00:47.6]} 37. Nc7 {[%clk 0:00:06.1]} 37... Re7
{[%clk 0:00:39.9]} 38. Nb5 {[%clk 0:00:08]} 38... Be3 {[%clk 0:00:38.3]} 39. Rh2
{[%clk 0:00:09.9]} 39... Kg7 {[%clk 0:00:26.2]} 40. Rh3 {[%clk 0:00:08.1]} 40...
h5 {[%clk 0:00:20.2]} 41. Bxf3 {[%clk 0:00:08.8]} 41... Ref7 {[%clk 0:00:21.3]}
42. Kg2 {[%clk 0:00:09.9]} 42... Nd3 {[%clk 0:00:20.9]} 43. Rg3 {[%clk
0:00:08.9]} 43... Bf4 {[%clk 0:00:19.3]} 44. Rh3 {[%clk 0:00:09.5]} 44... Bb8
{[%clk 0:00:19.5]} 45. Nd4 {[%clk 0:00:08.4]} 45... Nf4+ {[%clk 0:00:19.4]} 46.
Kh2 {[%clk 0:00:10.3]} 46... Ne2+ {[%clk 0:00:19.4]} 0-1

[Event "*** MasterClass Titled Tuesday Blitz"]
[Site "Chess.com"]
[Date "2017.07.04"]
[Round "2"]
[White "dolynachess"]
[Black "Divertissement"]
[Result "0-1"]
[WhiteElo "2333"]
[BlackElo "2415"]
[TimeControl "180+2"]
[EndTime "13:24:14 PDT"]
[Termination "Divertissement won by resignation"]

1. c4 {[%clk 0:03:01.9]} 1... e6 {[%clk 0:02:57.5]} 2. g3 {[%clk 0:03:01.1]}
2... d5 {[%clk 0:02:56.8]} 3. Nf3 {[%clk 0:03:02]} 3... dxc4 {[%clk 0:02:55.1]}
4. Qa4+ {[%clk 0:03:01.2]} 4... c6 {[%clk 0:02:56.4]} 5. Qxc4 {[%clk 0:03:01.8]}
5... b5 {[%clk 0:02:57.3]} 6. Qc2 {[%clk 0:03:01.5]} 6... Bb7 {[%clk 0:02:58]}
7. Bg2 {[%clk 0:03:02.8]} 7... Nd7 {[%clk 0:02:57.7]} 8. O-O {[%clk 0:03:04.2]}
8... Ngf6 {[%clk 0:02:57.5]} 9. d3 {[%clk 0:02:58.4]} 9... Be7 {[%clk
0:02:57.5]} 10. b3 {[%clk 0:02:59.2]} 10... O-O {[%clk 0:02:57.8]} 11. Bb2
{[%clk 0:03:00.2]} 11... a6 {[%clk 0:02:56.8]} 12. Ne5 {[%clk 0:02:56.3]} 12...
Nxe5 {[%clk 0:02:56.8]} 13. Bxe5 {[%clk 0:02:56.3]} 13... Qb6 {[%clk 0:02:56.5]}
14. Nd2 {[%clk 0:02:53.1]} 14... Rac8 {[%clk 0:02:56.6]} 15. Qb2 {[%clk
0:02:43]} 15... c5 {[%clk 0:02:54.4]} 16. Rac1 {[%clk 0:02:27]} 16... Bxg2
{[%clk 0:02:53.7]} 17. Kxg2 {[%clk 0:02:28.9]} 17... Rfd8 {[%clk 0:02:25.7]} 18.
Rc2 {[%clk 0:02:24.8]} 18... h5 {[%clk 0:02:13.1]} 19. h4 {[%clk 0:02:21.4]}
19... Qb7+ {[%clk 0:02:13.3]} 20. Kg1 {[%clk 0:02:07.3]} 20... Ne8 {[%clk
0:02:01]} 21. Rfc1 {[%clk 0:01:53]} 21... f6 {[%clk 0:01:53.4]} 22. Bf4 {[%clk
0:01:53.5]} 22... Qd5 {[%clk 0:01:40.7]} 23. Ne4 {[%clk 0:01:47.3]} 23... f5
{[%clk 0:01:29.7]} 24. Nd2 {[%clk 0:01:19]} 24... Bf6 {[%clk 0:01:26.7]} 25. Qa3
{[%clk 0:01:18.6]} 25... e5 {[%clk 0:01:22.2]} 26. Be3 {[%clk 0:01:15.6]} 26...
f4 {[%clk 0:01:22.8]} 27. Rxc5 {[%clk 0:00:59.2]} 27... Rxc5 {[%clk 0:01:13.2]}
28. Bxc5 {[%clk 0:00:57.2]} 28... fxg3 {[%clk 0:01:11.5]} 29. fxg3 {[%clk
0:00:57.5]} 29... g5 {[%clk 0:00:42.2]} 30. Ne4 {[%clk 0:00:36.9]} 30... gxh4
{[%clk 0:00:41.8]} 31. Be7 {[%clk 0:00:32.5]} 31... Bxe7 {[%clk 0:00:28.5]} 32.
Qxe7 {[%clk 0:00:32.6]} 32... hxg3 {[%clk 0:00:24.9]} 33. Qxe8+ {[%clk
0:00:31.3]} 33... Rxe8 {[%clk 0:00:21.6]} 34. Nf6+ {[%clk 0:00:32]} 34... Kf7
{[%clk 0:00:22.9]} 35. Nxd5 {[%clk 0:00:33.5]} 35... Kg6 {[%clk 0:00:21.4]} 36.
Kg2 {[%clk 0:00:33.9]} 36... h4 {[%clk 0:00:22.3]} 37. Rc6+ {[%clk 0:00:33.3]}
37... Kg5 {[%clk 0:00:23.3]} 38. Nc3 {[%clk 0:00:30.5]} 38... Rf8 {[%clk
0:00:15]} 39. Ne4+ {[%clk 0:00:29.2]} 39... Kf4 {[%clk 0:00:16]} 40. Rf6+ {[%clk
0:00:20.8]} 40... Rxf6 {[%clk 0:00:16.1]} 41. Nxf6 {[%clk 0:00:22.7]} 41... Ke3
{[%clk 0:00:17.3]} 42. Nd7 {[%clk 0:00:17.8]} 42... e4 {[%clk 0:00:17.1]} 43.
dxe4 {[%clk 0:00:17.9]} 43... Kxe4 {[%clk 0:00:19]} 44. Nc5+ {[%clk 0:00:16.2]}
44... Kf4 {[%clk 0:00:19.9]} 45. e4 {[%clk 0:00:15.9]} 45... Ke5 {[%clk
0:00:20.7]} 46. Kh3 {[%clk 0:00:16.4]} 46... Kd4 {[%clk 0:00:21.4]} 47. Nxa6
{[%clk 0:00:17.5]} 47... Kxe4 {[%clk 0:00:22.8]} 48. a4 {[%clk 0:00:17.6]} 48...
Kf3 {[%clk 0:00:19.5]} 49. axb5 {[%clk 0:00:11.1]} 49... g2 {[%clk 0:00:20.5]}
50. Kh2 {[%clk 0:00:11.9]} 50... Kf2 {[%clk 0:00:20.7]} 51. Nc5 {[%clk
0:00:11.6]} 51... g1=Q+ {[%clk 0:00:21.4]} 0-1

[Event "*** MasterClass Titled Tuesday Blitz"]
[Site "Chess.com"]
[Date "2017.07.04"]
[Round "2"]
[White "kleinebeer98"]
[Black "LonesomeGeorge1"]
[Result "0-1"]
[WhiteElo "2434"]
[BlackElo "2266"]
[TimeControl "180+2"]
[EndTime "13:24:14 PDT"]
[Termination "LonesomeGeorge1 won by checkmate"]

1. e4 {[%clk 0:03:00.8]} 1... c5 {[%clk 0:03:00.7]} 2. Nf3 {[%clk 0:03:00.6]}
2... Nc6 {[%clk 0:03:01.7]} 3. d4 {[%clk 0:02:55.1]} 3... cxd4 {[%clk
0:03:03.6]} 4. Nxd4 {[%clk 0:02:57]} 4... Nf6 {[%clk 0:03:05]} 5. Nc3 {[%clk
0:02:57]} 5... e5 {[%clk 0:03:06.2]} 6. Ndb5 {[%clk 0:02:57.8]} 6... h6 {[%clk
0:03:07.3]} 7. Nd5 {[%clk 0:02:49.3]} 7... Nxd5 {[%clk 0:03:08]} 8. exd5 {[%clk
0:02:48.5]} 8... a6 {[%clk 0:03:09.4]} 9. Nc3 {[%clk 0:02:40]} 9... Nd4 {[%clk
0:03:10]} 10. Be3 {[%clk 0:02:35.2]} 10... Nf5 {[%clk 0:03:10.9]} 11. Bd2 {[%clk
0:02:26.4]} 11... Bc5 {[%clk 0:03:08.5]} 12. Bd3 {[%clk 0:02:23.9]} 12... d6
{[%clk 0:03:09]} 13. O-O {[%clk 0:02:21.9]} 13... O-O {[%clk 0:03:09.5]} 14. Kh1
{[%clk 0:02:20.4]} 14... Qh4 {[%clk 0:02:54.1]} 15. Ne4 {[%clk 0:02:15.9]} 15...
Ba7 {[%clk 0:02:33.9]} 16. a4 {[%clk 0:01:47.6]} 16... Qe7 {[%clk 0:02:33.4]}
17. c3 {[%clk 0:01:44.6]} 17... Nh4 {[%clk 0:02:33.4]} 18. f4 {[%clk 0:01:41.9]}
18... f5 {[%clk 0:02:31.8]} 19. Ng3 {[%clk 0:01:26.3]} 19... e4 {[%clk
0:02:17.5]} 20. Bc4 {[%clk 0:01:14.3]} 20... Bd7 {[%clk 0:02:01.6]} 21. Qe2
{[%clk 0:01:04.3]} 21... Rf7 {[%clk 0:01:34.9]} 22. Be3 {[%clk 0:01:01.2]} 22...
Bxe3 {[%clk 0:01:31]} 23. Qxe3 {[%clk 0:01:03.1]} 23... g5 {[%clk 0:01:31.5]}
24. Ne2 {[%clk 0:00:51.4]} 24... Ng6 {[%clk 0:01:28.5]} 25. g3 {[%clk
0:00:46.7]} 25... Rc8 {[%clk 0:01:02.2]} 26. Bb3 {[%clk 0:00:42.3]} 26... Rg7
{[%clk 0:00:27.8]} 27. Nd4 {[%clk 0:00:35.1]} 27... gxf4 {[%clk 0:00:27.8]} 28.
gxf4 {[%clk 0:00:37]} 28... Qh4 {[%clk 0:00:27.7]} 29. Rf2 {[%clk 0:00:17.7]}
29... Kh7 {[%clk 0:00:27.9]} 30. Rg1 {[%clk 0:00:18.5]} 30... Rcg8 {[%clk
0:00:28.4]} 31. Bc2 {[%clk 0:00:12.7]} 31... Qh5 {[%clk 0:00:18]} 32. Bd1 {[%clk
0:00:09.7]} 32... Qh4 {[%clk 0:00:19]} 33. b4 {[%clk 0:00:07.4]} 33... Qf6
{[%clk 0:00:20]} 34. Bh5 {[%clk 0:00:06.2]} 34... Nh4 {[%clk 0:00:19]} 35. Rxg7+
{[%clk 0:00:06.3]} 35... Rxg7 {[%clk 0:00:20.9]} 36. Qh3 {[%clk 0:00:04.8]}
36... Bxa4 {[%clk 0:00:19.8]} 37. Ne6 {[%clk 0:00:02.5]} 37... Rg8 {[%clk
0:00:18.5]} 38. Nd4 {[%clk 0:00:02.9]} 38... Bd7 {[%clk 0:00:19.3]} 39. Qe3
{[%clk 0:00:03.8]} 39... Qg7 {[%clk 0:00:17.1]} 40. Re2 {[%clk 0:00:03.9]} 40...
b6 {[%clk 0:00:14.8]} 41. Rd2 {[%clk 0:00:02.3]} 41... Bc8 {[%clk 0:00:15]} 42.
Rc2 {[%clk 0:00:03.1]} 42... Bb7 {[%clk 0:00:16.2]} 43. c4 {[%clk 0:00:04.6]}
43... b5 {[%clk 0:00:16.5]} 44. c5 {[%clk 0:00:05.6]} 44... Bxd5 {[%clk
0:00:17.4]} 45. cxd6 {[%clk 0:00:06.2]} 45... Kh8 {[%clk 0:00:17.7]} 46. Bd1
{[%clk 0:00:04.5]} 46... Nf3 {[%clk 0:00:18.1]} 47. Nxf3 {[%clk 0:00:04.5]}
47... exf3 {[%clk 0:00:19.4]} 48. Qf2 {[%clk 0:00:05.3]} 48... Qg1+ {[%clk
0:00:14.6]} 49. Qxg1 {[%clk 0:00:05.3]} 49... f2+ {[%clk 0:00:16.5]} 50. Qg2
{[%clk 0:00:05]} 50... f1=Q# {[%clk 0:00:17]} 0-1

[Event "*** MasterClass Titled Tuesday Blitz"]
[Site "Chess.com"]
[Date "2017.07.04"]
[Round "2"]
[White "djogrodek1"]
[Black "JammyDodger91"]
[Result "1-0"]
[WhiteElo "2333"]
[BlackElo "2276"]
[TimeControl "180+2"]
[EndTime "13:24:26 PDT"]
[Termination "djogrodek1 won by resignation"]

1. e4 {[%clk 0:03:00.3]} 1... c5 {[%clk 0:03:00]} 2. Nf3 {[%clk 0:02:58.7]} 2...
e6 {[%clk 0:03:00.5]} 3. d4 {[%clk 0:02:59.6]} 3... cxd4 {[%clk 0:03:02.4]} 4.
Nxd4 {[%clk 0:03:00.8]} 4... a6 {[%clk 0:03:03.8]} 5. Nc3 {[%clk 0:03:02.3]}
5... Qc7 {[%clk 0:03:04.5]} 6. g3 {[%clk 0:03:03.5]} 6... Nf6 {[%clk 0:03:05.5]}
7. Bg2 {[%clk 0:03:04.7]} 7... d6 {[%clk 0:03:02.9]} 8. O-O {[%clk 0:03:05.5]}
8... Be7 {[%clk 0:03:04.1]} 9. a4 {[%clk 0:03:03.6]} 9... Nc6 {[%clk 0:02:53.8]}
10. h3 {[%clk 0:03:00.9]} 10... Bd7 {[%clk 0:02:47.6]} 11. Re1 {[%clk
0:02:59.5]} 11... O-O {[%clk 0:02:47.4]} 12. Nb3 {[%clk 0:02:56.5]} 12... Rac8
{[%clk 0:02:35.2]} 13. f4 {[%clk 0:02:56.4]} 13... Nb4 {[%clk 0:02:04.7]} 14.
Be3 {[%clk 0:02:54.4]} 14... Bc6 {[%clk 0:01:58.9]} 15. Nd4 {[%clk 0:02:38.3]}
15... Rfd8 {[%clk 0:01:53.5]} 16. g4 {[%clk 0:02:36.9]} 16... g6 {[%clk
0:01:43]} 17. f5 {[%clk 0:02:29.4]} 17... e5 {[%clk 0:01:40.7]} 18. Nxc6 {[%clk
0:02:27.5]} 18... bxc6 {[%clk 0:01:42.6]} 19. a5 {[%clk 0:02:11.1]} 19... Qb8
{[%clk 0:01:27.6]} 20. Rf1 {[%clk 0:02:06.3]} 20... d5 {[%clk 0:00:57.3]} 21.
Bb6 {[%clk 0:02:06.3]} 21... Rd7 {[%clk 0:00:50.9]} 22. g5 {[%clk 0:01:50.5]}
22... dxe4 {[%clk 0:00:46.4]} 23. Qe2 {[%clk 0:01:42.9]} 23... Nfd5 {[%clk
0:00:46.6]} 24. fxg6 {[%clk 0:01:36.2]} 24... hxg6 {[%clk 0:00:43.5]} 25. Nxe4
{[%clk 0:01:35.8]} 25... Nf4 {[%clk 0:00:34.1]} 26. Qc4 {[%clk 0:01:36.9]} 26...
Nbd5 {[%clk 0:00:30.8]} 27. Qxa6 {[%clk 0:01:19.7]} 27... Kg7 {[%clk 0:00:19.3]}
28. b3 {[%clk 0:00:37.3]} 28... Rh8 {[%clk 0:00:17.8]} 29. Qc4 {[%clk
0:00:33.3]} 29... Nxh3+ {[%clk 0:00:13.9]} 30. Bxh3 {[%clk 0:00:28.7]} 30...
Rxh3 {[%clk 0:00:15.8]} 31. Qxc6 {[%clk 0:00:25.4]} 31... Qh8 {[%clk 0:00:10.2]}
32. Qxd7 {[%clk 0:00:26.1]} 32... Rh1+ {[%clk 0:00:10.7]} 33. Kf2 {[%clk
0:00:27]} 33... Qh4+ {[%clk 0:00:11.2]} 34. Ng3 {[%clk 0:00:17.7]} 34... Rh2+
{[%clk 0:00:11.1]} 35. Ke1 {[%clk 0:00:16.3]} 35... Qxg3+ {[%clk 0:00:11.2]} 36.
Kd1 {[%clk 0:00:18.2]} 36... Nc3+ {[%clk 0:00:10.9]} 37. Kc1 {[%clk 0:00:19.6]}
37... Bxg5+ {[%clk 0:00:09.9]} 38. Kb2 {[%clk 0:00:20.7]} 38... Bf6 {[%clk
0:00:07.5]} 39. Bd8 {[%clk 0:00:20.1]} 39... Ne4 {[%clk 0:00:05.7]} 40. Bxf6+
{[%clk 0:00:20.5]} 40... Nxf6 {[%clk 0:00:07.6]} 41. Rxf6 {[%clk 0:00:21.9]}
41... Kxf6 {[%clk 0:00:07.4]} 42. Rf1+ {[%clk 0:00:21.2]} 42... Rf2 {[%clk
0:00:08.3]} 43. Qd6+ {[%clk 0:00:22.1]} 43... Kg7 {[%clk 0:00:08.3]} 44. Rxf2
{[%clk 0:00:22.9]} 44... Qxf2 {[%clk 0:00:07.7]} 45. Qxe5+ {[%clk 0:00:24.4]}
45... Kh7 {[%clk 0:00:08.8]} 46. a6 {[%clk 0:00:25.9]} 46... f6 {[%clk
0:00:07.9]} 47. Qc7+ {[%clk 0:00:26.1]} 47... Kh6 {[%clk 0:00:08.6]} 48. a7
{[%clk 0:00:28]} 48... Qd4+ {[%clk 0:00:08.4]} 49. Ka2 {[%clk 0:00:28.7]} 49...
Qe4 {[%clk 0:00:07.5]} 50. Kb1 {[%clk 0:00:20.1]} 50... Qe1+ {[%clk 0:00:06.7]}
51. Kb2 {[%clk 0:00:20.6]} 51... Qe4 {[%clk 0:00:07.2]} 52. Qb8 {[%clk
0:00:21.2]} 52... Qd4+ {[%clk 0:00:07.4]} 53. Ka2 {[%clk 0:00:20.3]} 1-0

[Event "*** MasterClass Titled Tuesday Blitz"]
[Site "Chess.com"]
[Date "2017.07.04"]
[Round "2"]
[White "angieflynn"]
[Black "rithwik2002"]
[Result "0-1"]
[WhiteElo "1745"]
[BlackElo "1793"]
[TimeControl "180+2"]
[EndTime "13:24:40 PDT"]
[Termination "rithwik2002 won by resignation"]

1. Nf3 {[%clk 0:03:01.9]} 1... Nf6 {[%clk 0:02:59.7]} 2. c4 {[%clk 0:03:00.6]}
2... e6 {[%clk 0:02:59.4]} 3. g3 {[%clk 0:03:00]} 3... d5 {[%clk 0:02:59.3]} 4.
b3 {[%clk 0:03:00.2]} 4... Be7 {[%clk 0:02:45.9]} 5. Bb2 {[%clk 0:02:55]} 5...
a6 {[%clk 0:02:40.5]} 6. Bg2 {[%clk 0:02:51.1]} 6... O-O {[%clk 0:02:36.1]} 7.
e3 {[%clk 0:02:49.9]} 7... b5 {[%clk 0:02:33.5]} 8. Qe2 {[%clk 0:02:42.2]} 8...
bxc4 {[%clk 0:02:12.4]} 9. bxc4 {[%clk 0:02:40.8]} 9... Nc6 {[%clk 0:02:11.8]}
10. Nc3 {[%clk 0:02:33.7]} 10... Rb8 {[%clk 0:02:07.4]} 11. Rb1 {[%clk
0:02:20.9]} 11... Nb4 {[%clk 0:01:51]} 12. O-O {[%clk 0:02:18.3]} 12... a5
{[%clk 0:01:43.1]} 13. Ba1 {[%clk 0:02:07.4]} 13... dxc4 {[%clk 0:01:36.4]} 14.
Qxc4 {[%clk 0:01:24.3]} 14... Ba6 {[%clk 0:01:34.5]} 15. Qf4 {[%clk 0:01:17.6]}
15... Bxf1 {[%clk 0:01:30.9]} 16. Bxf1 {[%clk 0:01:17.4]} 16... Nbd5 {[%clk
0:01:23.9]} 17. Rxb8 {[%clk 0:01:15.1]} 17... Qxb8 {[%clk 0:01:23.5]} 18. Qa4
{[%clk 0:01:13.5]} 18... Qb4 {[%clk 0:01:18.8]} 19. Qc6 {[%clk 0:01:08.9]} 19...
Nxc3 {[%clk 0:01:09.1]} 20. Bxc3 {[%clk 0:01:13.9]} 20... Qd6 {[%clk 0:01:09]}
21. Qc4 {[%clk 0:01:10.9]} 21... Rb8 {[%clk 0:01:05.9]} 22. Bxa5 {[%clk
0:01:09.4]} 22... Qd5 {[%clk 0:00:45.6]} 23. Qxc7 {[%clk 0:01:06.5]} 23... Rb1
{[%clk 0:00:37.9]} 24. Qc8+ {[%clk 0:01:01.3]} 24... Bf8 {[%clk 0:00:36.1]} 25.
Kg2 {[%clk 0:00:52.5]} 25... Rxf1 {[%clk 0:00:18.6]} 26. Kxf1 {[%clk 0:00:57.5]}
26... Qxa5 {[%clk 0:00:18.4]} 27. Qc4 {[%clk 0:00:47]} 27... h6 {[%clk
0:00:15.8]} 28. d4 {[%clk 0:00:47.1]} 28... Qb6 {[%clk 0:00:13.5]} 29. Nd2
{[%clk 0:00:43.2]} 29... Qb7 {[%clk 0:00:11.8]} 30. Ke2 {[%clk 0:00:42.1]} 30...
Nd5 {[%clk 0:00:12.1]} 31. Ne4 {[%clk 0:00:39.3]} 31... Qb4 {[%clk 0:00:11.6]}
32. Qc2 {[%clk 0:00:40.5]} 32... Qb5+ {[%clk 0:00:09.9]} 33. Kf3 {[%clk
0:00:40.6]} 33... Nb4 {[%clk 0:00:10.7]} 34. Qb3 {[%clk 0:00:38.8]} 34... Qf5+
{[%clk 0:00:10.5]} 35. Ke2 {[%clk 0:00:38.9]} 35... Qxe4 {[%clk 0:00:11.3]} 36.
a3 {[%clk 0:00:39.9]} 36... Qc2+ {[%clk 0:00:11]} 37. Qxc2 {[%clk 0:00:41.5]}
37... Nxc2 {[%clk 0:00:12.9]} 38. a4 {[%clk 0:00:48.6]} 38... Nb4 {[%clk
0:00:13.3]} 39. Kd2 {[%clk 0:00:48.4]} 39... Nc6 {[%clk 0:00:13.4]} 40. Kc3
{[%clk 0:00:48.2]} 40... f6 {[%clk 0:00:13.5]} 41. Kc4 {[%clk 0:00:48.6]} 41...
Nb8 {[%clk 0:00:10.1]} 42. e4 {[%clk 0:00:48.6]} 42... Kf7 {[%clk 0:00:10.3]}
43. Kb5 {[%clk 0:00:47.9]} 43... f5 {[%clk 0:00:10.7]} 44. exf5 {[%clk
0:00:46.6]} 44... exf5 {[%clk 0:00:11]} 45. a5 {[%clk 0:00:48.5]} 45... Ke6
{[%clk 0:00:12]} 46. a6 {[%clk 0:00:48.5]} 46... Nxa6 {[%clk 0:00:12.1]} 47.
Kxa6 {[%clk 0:00:49.5]} 47... Kd5 {[%clk 0:00:13.3]} 48. Kb7 {[%clk 0:00:50.2]}
48... Kxd4 {[%clk 0:00:12.7]} 49. Kc7 {[%clk 0:00:52.1]} 49... Ke4 {[%clk
0:00:12.8]} 50. Kd7 {[%clk 0:00:54]} 50... Bc5 {[%clk 0:00:13.2]} 51. Ke6 {[%clk
0:00:55.9]} 51... Bxf2 {[%clk 0:00:13.3]} 52. Kf7 {[%clk 0:00:54.6]} 52... Bg1
{[%clk 0:00:13.4]} 53. h3 {[%clk 0:00:51.4]} 53... Bh2 {[%clk 0:00:13.7]} 54.
Kxg7 {[%clk 0:00:52]} 54... Bxg3 {[%clk 0:00:12.8]} 55. Kxh6 {[%clk 0:00:51.1]}
55... f4 {[%clk 0:00:13.4]} 0-1

[Event "*** MasterClass Titled Tuesday Blitz"]
[Site "Chess.com"]
[Date "2017.07.04"]
[Round "2"]
[White "x-3738459472"]
[Black "MITerryble"]
[Result "1/2-1/2"]
[WhiteElo "2454"]
[BlackElo "2632"]
[TimeControl "180+2"]
[EndTime "13:24:42 PDT"]
[Termination "Game drawn by repetition"]

1. e4 {[%clk 0:03:01.9]} 1... e6 {[%clk 0:03:01]} 2. d4 {[%clk 0:03:01.9]} 2...
d5 {[%clk 0:03:02.5]} 3. Nd2 {[%clk 0:03:02.7]} 3... Be7 {[%clk 0:03:03.4]} 4.
c3 {[%clk 0:02:58.7]} 4... c5 {[%clk 0:03:03.7]} 5. dxc5 {[%clk 0:02:57.7]} 5...
Bxc5 {[%clk 0:03:04.8]} 6. exd5 {[%clk 0:02:58]} 6... exd5 {[%clk 0:03:03.7]} 7.
Ngf3 {[%clk 0:02:58]} 7... Nf6 {[%clk 0:03:04]} 8. Bb5+ {[%clk 0:02:57.6]} 8...
Nc6 {[%clk 0:03:05.1]} 9. O-O {[%clk 0:02:51]} 9... O-O {[%clk 0:03:05.6]} 10.
Nb3 {[%clk 0:02:51.4]} 10... Bb6 {[%clk 0:03:06.9]} 11. Bg5 {[%clk 0:02:50.9]}
11... a6 {[%clk 0:02:57.6]} 12. Bd3 {[%clk 0:02:48.9]} 12... h6 {[%clk
0:02:57.3]} 13. Bh4 {[%clk 0:02:47.7]} 13... g5 {[%clk 0:02:56.7]} 14. Bg3
{[%clk 0:02:38.7]} 14... Ne4 {[%clk 0:02:57.5]} 15. Nfd4 {[%clk 0:02:33.7]}
15... f5 {[%clk 0:02:54.4]} 16. Nxc6 {[%clk 0:02:31.7]} 16... bxc6 {[%clk
0:02:55.3]} 17. Be5 {[%clk 0:02:31.3]} 17... Qe7 {[%clk 0:02:54.4]} 18. Bd4
{[%clk 0:02:29.4]} 18... c5 {[%clk 0:02:03.8]} 19. Bxe4 {[%clk 0:02:28.4]} 19...
dxe4 {[%clk 0:02:04.6]} 20. Bxc5 {[%clk 0:02:27.7]} 20... Bxc5 {[%clk
0:02:06.5]} 21. Qd5+ {[%clk 0:02:27.6]} 21... Be6 {[%clk 0:02:08.1]} 22. Qxc5
{[%clk 0:02:28.3]} 22... Qf7 {[%clk 0:01:41.1]} 23. Nd4 {[%clk 0:02:27.6]} 23...
Bd7 {[%clk 0:01:35.6]} 24. Rad1 {[%clk 0:02:19.3]} 24... Kh7 {[%clk 0:01:25.3]}
25. Rfe1 {[%clk 0:02:07.7]} 25... Rfe8 {[%clk 0:01:21.2]} 26. Qd6 {[%clk
0:01:58.2]} 26... Ra7 {[%clk 0:00:57.3]} 27. Nb3 {[%clk 0:01:52.6]} 27... Be6
{[%clk 0:00:56.8]} 28. Nc5 {[%clk 0:01:51.8]} 28... Bxa2 {[%clk 0:00:56]} 29. b3
{[%clk 0:01:35.6]} 29... Bxb3 {[%clk 0:00:54.3]} 30. Nxb3 {[%clk 0:01:35.8]}
30... Qxb3 {[%clk 0:00:55.7]} 31. Rd5 {[%clk 0:01:36.1]} 31... Qxc3 {[%clk
0:00:53.7]} 32. Red1 {[%clk 0:01:35.6]} 32... Qc8 {[%clk 0:00:44.1]} 33. Qb6
{[%clk 0:01:34]} 33... Rf7 {[%clk 0:00:42.1]} 34. Rd6 {[%clk 0:01:32.9]} 34...
Qc3 {[%clk 0:00:27.2]} 35. Rxh6+ {[%clk 0:01:31.5]} 35... Kg8 {[%clk 0:00:28.3]}
36. Qg6+ {[%clk 0:01:29.1]} 36... Qg7 {[%clk 0:00:28.8]} 37. Qh5 {[%clk
0:01:29.6]} 37... Kf8 {[%clk 0:00:15.7]} 38. h3 {[%clk 0:01:24.6]} 38... e3
{[%clk 0:00:10.9]} 39. fxe3 {[%clk 0:01:23.6]} 39... Rxe3 {[%clk 0:00:11]} 40.
Rg6 {[%clk 0:01:20]} 40... Qe5 {[%clk 0:00:10.1]} 41. Qh6+ {[%clk 0:01:04.6]}
41... Ke7 {[%clk 0:00:06.1]} 42. Qxg5+ {[%clk 0:01:04.6]} 42... Rf6 {[%clk
0:00:07.4]} 43. Rxf6 {[%clk 0:01:01.4]} 43... Re1+ {[%clk 0:00:08.1]} 44. Rxe1
{[%clk 0:01:01.6]} 44... Qxe1+ {[%clk 0:00:09]} 45. Kh2 {[%clk 0:01:02.3]} 45...
Qe5+ {[%clk 0:00:10.9]} 46. Kg1 {[%clk 0:00:56.1]} 46... Qxf6 {[%clk 0:00:09.3]}
47. Qe3+ {[%clk 0:00:55.6]} 47... Kf7 {[%clk 0:00:09.4]} 48. Qa7+ {[%clk
0:00:55.4]} 48... Kg6 {[%clk 0:00:10.1]} 49. Qa8 {[%clk 0:00:55.6]} 49... Qb6+
{[%clk 0:00:10.1]} 50. Kh1 {[%clk 0:00:55.5]} 50... Qe6 {[%clk 0:00:10.9]} 51.
Kh2 {[%clk 0:00:47.5]} 51... Qe5+ {[%clk 0:00:11.8]} 52. Kh1 {[%clk 0:00:43.6]}
52... a5 {[%clk 0:00:12.8]} 53. Qg8+ {[%clk 0:00:43.9]} 53... Kh6 {[%clk
0:00:14]} 54. Qf8+ {[%clk 0:00:43.9]} 54... Kg5 {[%clk 0:00:14.9]} 55. Qg8+
{[%clk 0:00:44.2]} 55... Kf4 {[%clk 0:00:15.5]} 56. Qc4+ {[%clk 0:00:44.5]}
56... Ke3 {[%clk 0:00:16.2]} 57. Qc1+ {[%clk 0:00:43]} 57... Kd3 {[%clk
0:00:15.5]} 58. Qd1+ {[%clk 0:00:42.2]} 58... Kc4 {[%clk 0:00:16.4]} 59. Qa4+
{[%clk 0:00:42.6]} 59... Kd3 {[%clk 0:00:16.2]} 60. Qd1+ {[%clk 0:00:42.8]}
60... Ke3 {[%clk 0:00:16.2]} 61. Qe1+ {[%clk 0:00:42.6]} 61... Kd4 {[%clk
0:00:17.1]} 62. Qa1+ {[%clk 0:00:42.6]} 62... Ke4 {[%clk 0:00:17.4]} 63. Qe1+
{[%clk 0:00:42.6]} 63... Kd4 {[%clk 0:00:18.1]} 64. Qa1+ {[%clk 0:00:42.3]}
64... Ke4 {[%clk 0:00:19.1]} 65. Qe1+ {[%clk 0:00:41.8]} 65... Kd4 {[%clk
0:00:19.4]} 1/2-1/2